[Event "Early-Titled-Tuesday-Blitz-September-12-2023"]
[Site "Chess.com"]
[Date "2023.09.12"]
[Round "1"]
[White "SchmakAttack"]
[Black "stasOR4ik"]
[Result "1-0"]
[WhiteElo "2776"]
[BlackElo "2443"]
[TimeControl "180+1"]
[EndTime "8:05:13 PDT"]
[Termination "SchmakAttack won by resignation"]

1. d4 {[%clk 0:02:59.9]} 1... d5 {[%clk 0:02:58.4]} 2. Nf3 {[%clk 0:02:54]} 2...
Nf6 {[%clk 0:02:58.2]} 3. e3 {[%clk 0:02:54]} 3... e6 {[%clk 0:02:53.5]} 4. Bd3
{[%clk 0:02:52]} 4... c5 {[%clk 0:02:53.9]} 5. b3 {[%clk 0:02:52.2]} 5... Nc6
{[%clk 0:02:54.3]} 6. Bb2 {[%clk 0:02:50]} 6... a6 {[%clk 0:02:54.7]} 7. O-O
{[%clk 0:02:49.6]} 7... b5 {[%clk 0:02:55.1]} 8. dxc5 {[%clk 0:02:44.4]} 8...
Bxc5 {[%clk 0:02:54.9]} 9. Nbd2 {[%clk 0:02:44.6]} 9... Bb7 {[%clk 0:02:53.8]}
10. a3 {[%clk 0:02:37.6]} 10... O-O {[%clk 0:02:44.1]} 11. Qe2 {[%clk 0:02:36]}
11... Qe7 {[%clk 0:02:38]} 12. e4 {[%clk 0:02:35.6]} 12... dxe4 {[%clk
0:02:27.3]} 13. Nxe4 {[%clk 0:02:36.5]} 13... Nxe4 {[%clk 0:02:23.6]} 14. Qxe4
{[%clk 0:02:35.1]} 14... g6 {[%clk 0:02:15.2]} 15. Qf4 {[%clk 0:02:26.2]} 15...
f6 {[%clk 0:02:04.8]} 16. Rfe1 {[%clk 0:02:19.3]} 16... e5 {[%clk 0:02:05.2]}
17. Qh4 {[%clk 0:02:13.1]} 17... Rae8 {[%clk 0:01:44.9]} 18. b4 {[%clk
0:02:04.5]} 18... Bb6 {[%clk 0:01:36.6]} 19. c4 {[%clk 0:02:04.3]} 19... Qd7
{[%clk 0:01:20.2]} 20. Rad1 {[%clk 0:02:00.6]} 20... Nd4 {[%clk 0:01:04.2]} 21.
Nxd4 {[%clk 0:01:55.6]} 21... Bxd4 {[%clk 0:00:58]} 22. cxb5 {[%clk 0:01:51.2]}
22... axb5 {[%clk 0:00:43.5]} 23. Bxd4 {[%clk 0:01:50.4]} 23... exd4 {[%clk
0:00:32]} 24. Rxe8 {[%clk 0:01:51.3]} 24... Rxe8 {[%clk 0:00:27]} 25. Qxf6
{[%clk 0:01:51.5]} 25... Qd5 {[%clk 0:00:24.1]} 26. Bf1 {[%clk 0:01:51.4]} 26...
Rf8 {[%clk 0:00:19.5]} 27. Qxd4 {[%clk 0:01:49.7]} 27... Qxd4 {[%clk 0:00:20]}
28. Rxd4 {[%clk 0:01:50.4]} 28... Ra8 {[%clk 0:00:20.5]} 29. Rd3 {[%clk
0:01:45.4]} 29... Kf7 {[%clk 0:00:19.5]} 30. Rd7+ {[%clk 0:01:44.9]} 30... Kf6
{[%clk 0:00:19.4]} 31. Rxb7 {[%clk 0:01:45.8]} 31... Rxa3 {[%clk 0:00:19.7]} 32.
Rxb5 {[%clk 0:01:46.2]} 1-0

[Event "Early-Titled-Tuesday-Blitz-September-12-2023"]
[Site "Chess.com"]
[Date "2023.09.12"]
[Round "1"]
[White "h4parah5"]
[Black "skoularikii"]
[Result "1-0"]
[WhiteElo "2946"]
[BlackElo "2511"]
[TimeControl "180+1"]
[EndTime "8:05:14 PDT"]
[Termination "h4parah5 won by checkmate"]

1. Nf3 {[%clk 0:03:00.9]} 1... d5 {[%clk 0:02:53.3]} 2. b4 {[%clk 0:03:00.4]}
2... Nf6 {[%clk 0:02:50.4]} 3. Bb2 {[%clk 0:03:00.2]} 3... Nbd7 {[%clk
0:02:50.2]} 4. e3 {[%clk 0:02:58.8]} 4... g6 {[%clk 0:02:50.2]} 5. c4 {[%clk
0:02:58.5]} 5... c6 {[%clk 0:02:39.6]} 6. cxd5 {[%clk 0:02:48.9]} 6... cxd5
{[%clk 0:02:38.6]} 7. Nc3 {[%clk 0:02:49.6]} 7... e5 {[%clk 0:02:27.3]} 8. Qb3
{[%clk 0:02:44.2]} 8... e4 {[%clk 0:02:02.2]} 9. Nd4 {[%clk 0:02:43.3]} 9... Nb6
{[%clk 0:01:20.5]} 10. a4 {[%clk 0:02:42.3]} 10... a5 {[%clk 0:01:05]} 11. bxa5
{[%clk 0:02:39.8]} 11... Rxa5 {[%clk 0:01:04.3]} 12. Bb5+ {[%clk 0:02:39.5]}
12... Bd7 {[%clk 0:01:02.3]} 13. O-O {[%clk 0:02:36.7]} 13... Bd6 {[%clk
0:00:55.5]} 14. Bxd7+ {[%clk 0:02:30.7]} 14... Nfxd7 {[%clk 0:00:49.8]} 15. Ndb5
{[%clk 0:02:28.7]} 15... Be5 {[%clk 0:00:34.9]} 16. Ba3 {[%clk 0:02:15.6]} 16...
Nc4 {[%clk 0:00:23.9]} 17. Bb4 {[%clk 0:02:09.4]} 17... Nxd2 {[%clk 0:00:22.3]}
18. Qxd5 {[%clk 0:02:06.1]} 18... Rxb5 {[%clk 0:00:22.5]} 19. Nxb5 {[%clk
0:01:53.7]} 19... Nxf1 {[%clk 0:00:22.5]} 20. Rxf1 {[%clk 0:01:53]} 20... Qb8
{[%clk 0:00:15.1]} 21. Rd1 {[%clk 0:01:49.1]} 21... Nf6 {[%clk 0:00:15]} 22. Qc5
{[%clk 0:01:45.5]} 22... Bxh2+ {[%clk 0:00:07.8]} 23. Kf1 {[%clk 0:01:42.9]}
23... Qe5 {[%clk 0:00:03.9]} 24. Qc8# {[%clk 0:01:42.2]} 1-0

[Event "Early-Titled-Tuesday-Blitz-September-12-2023"]
[Site "Chess.com"]
[Date "2023.09.12"]
[Round "1"]
[White "Tejas_Rama"]
[Black "bardiya_Daneshvar"]
[Result "0-1"]
[WhiteElo "2510"]
[BlackElo "2925"]
[TimeControl "180+1"]
[EndTime "8:05:17 PDT"]
[Termination "bardiya_Daneshvar won by resignation"]

1. d4 {[%clk 0:01:31.6]} 1... d6 {[%clk 0:02:56.5]} 2. c4 {[%clk 0:01:32.3]}
2... c6 {[%clk 0:02:55.1]} 3. Nf3 {[%clk 0:01:32.2]} 3... Na6 {[%clk 0:02:56]}
4. g3 {[%clk 0:01:31]} 4... Nc7 {[%clk 0:02:56.9]} 5. Bg2 {[%clk 0:01:29.6]}
5... g6 {[%clk 0:02:55.8]} 6. O-O {[%clk 0:01:30.2]} 6... Bg7 {[%clk 0:02:56.5]}
7. Nc3 {[%clk 0:01:30.4]} 7... Nh6 {[%clk 0:02:56.4]} 8. e4 {[%clk 0:01:30.8]}
8... f6 {[%clk 0:02:56.8]} 9. Re1 {[%clk 0:01:25.7]} 9... Nf7 {[%clk 0:02:57.3]}
10. Be3 {[%clk 0:01:23.6]} 10... O-O {[%clk 0:02:56.9]} 11. Qc2 {[%clk
0:01:23.8]} 11... e5 {[%clk 0:02:57]} 12. Rad1 {[%clk 0:01:24]} 12... Qe7 {[%clk
0:02:57.4]} 13. b4 {[%clk 0:01:19.8]} 13... a6 {[%clk 0:02:52.4]} 14. Na4 {[%clk
0:01:10.8]} 14... Bg4 {[%clk 0:02:50.9]} 15. dxe5 {[%clk 0:01:05.1]} 15... fxe5
{[%clk 0:02:48.2]} 16. Rd2 {[%clk 0:01:02.4]} 16... Ne6 {[%clk 0:02:47.4]} 17.
c5 {[%clk 0:00:53.7]} 17... Bxf3 {[%clk 0:02:45.8]} 18. Bxf3 {[%clk 0:00:51.7]}
18... Nd4 {[%clk 0:02:46.4]} 19. Bxd4 {[%clk 0:00:48.3]} 19... exd4 {[%clk
0:02:47.3]} 20. Bg2 {[%clk 0:00:36.4]} 20... a5 {[%clk 0:02:41.7]} 21. Nb6
{[%clk 0:00:31.4]} 21... axb4 {[%clk 0:02:41.2]} 22. Nxa8 {[%clk 0:00:30.1]}
22... Rxa8 {[%clk 0:02:41.3]} 23. cxd6 {[%clk 0:00:29.9]} 23... Nxd6 {[%clk
0:02:39.4]} 24. e5 {[%clk 0:00:29.5]} 24... Nb5 {[%clk 0:02:39.2]} 25. Qb3+
{[%clk 0:00:28.2]} 25... Kh8 {[%clk 0:02:39.1]} 26. e6 {[%clk 0:00:27]} 26...
Nc3 {[%clk 0:02:36.7]} 27. Rb2 {[%clk 0:00:23.9]} 27... c5 {[%clk 0:02:35.6]}
28. Qc4 {[%clk 0:00:23.7]} 28... Rd8 {[%clk 0:02:34]} 29. a3 {[%clk 0:00:22.5]}
29... b5 {[%clk 0:02:33.2]} 30. Qb3 {[%clk 0:00:20.1]} 30... d3 {[%clk
0:02:33.5]} 31. axb4 {[%clk 0:00:18.9]} 31... c4 {[%clk 0:02:33.8]} 32. Qa3
{[%clk 0:00:15.9]} 32... d2 {[%clk 0:02:34.1]} 33. Rxd2 {[%clk 0:00:14]} 33...
Rxd2 {[%clk 0:02:35]} 34. Qa8+ {[%clk 0:00:13.3]} 34... Bf8 {[%clk 0:02:24.8]}
35. Ra1 {[%clk 0:00:10.7]} 35... Rd8 {[%clk 0:02:21.3]} 36. Qc6 {[%clk
0:00:08.9]} 36... Ne2+ {[%clk 0:02:18.9]} 37. Kh1 {[%clk 0:00:07.2]} 37... Nd4
{[%clk 0:02:19.8]} 38. Qe4 {[%clk 0:00:06.7]} 38... Qxe6 {[%clk 0:02:18.1]} 39.
Rd1 {[%clk 0:00:06.2]} 39... Qxe4 {[%clk 0:02:17.7]} 40. Bxe4 {[%clk 0:00:07.1]}
40... Bxb4 {[%clk 0:02:18]} 0-1

[Event "Early-Titled-Tuesday-Blitz-September-12-2023"]
[Site "Chess.com"]
[Date "2023.09.12"]
[Round "1"]
[White "semchik73"]
[Black "GaiozNigalidze"]
[Result "0-1"]
[WhiteElo "2404"]
[BlackElo "2712"]
[TimeControl "180+1"]
[EndTime "8:05:18 PDT"]
[Termination "GaiozNigalidze won by resignation"]

1. Nf3 {[%clk 0:03:00.3]} 1... Nf6 {[%clk 0:02:58.2]} 2. c4 {[%clk 0:03:00.6]}
2... e6 {[%clk 0:02:57.8]} 3. d4 {[%clk 0:03:01.1]} 3... d5 {[%clk 0:02:57.6]}
4. Nc3 {[%clk 0:03:01.5]} 4... Be7 {[%clk 0:02:58.1]} 5. Bg5 {[%clk 0:03:01.3]}
5... O-O {[%clk 0:02:58.1]} 6. e3 {[%clk 0:03:01.5]} 6... Ne4 {[%clk 0:02:57.4]}
7. Bxe7 {[%clk 0:03:01.1]} 7... Qxe7 {[%clk 0:02:58.1]} 8. Bd3 {[%clk
0:03:01.4]} 8... Nxc3 {[%clk 0:02:55.7]} 9. bxc3 {[%clk 0:03:01.2]} 9... dxc4
{[%clk 0:02:51.7]} 10. Bxc4 {[%clk 0:03:01.2]} 10... b6 {[%clk 0:02:47]} 11. O-O
{[%clk 0:02:59.4]} 11... Bb7 {[%clk 0:02:46.9]} 12. Qe2 {[%clk 0:02:57.9]} 12...
Nd7 {[%clk 0:02:45.2]} 13. e4 {[%clk 0:02:58.1]} 13... e5 {[%clk 0:02:42.8]} 14.
Bd5 {[%clk 0:02:41.6]} 14... Bxd5 {[%clk 0:02:24.4]} 15. exd5 {[%clk 0:02:41.1]}
15... e4 {[%clk 0:02:25]} 16. Nd2 {[%clk 0:02:35.4]} 16... Rae8 {[%clk
0:02:12.1]} 17. Rfe1 {[%clk 0:02:35.3]} 17... Nf6 {[%clk 0:01:55.3]} 18. f3
{[%clk 0:02:17.5]} 18... e3 {[%clk 0:01:39.9]} 19. Nf1 {[%clk 0:01:58.7]} 19...
Nxd5 {[%clk 0:01:37.9]} 20. c4 {[%clk 0:01:56.6]} 20... Nf4 {[%clk 0:01:29.8]}
21. Qxe3 {[%clk 0:01:55.5]} 21... Qg5 {[%clk 0:01:24.4]} 22. Qd2 {[%clk
0:01:52.5]} 22... Nh3+ {[%clk 0:01:16.1]} 23. Kh1 {[%clk 0:01:49.4]} 23... Qxd2
{[%clk 0:01:14.9]} 24. Nxd2 {[%clk 0:01:49.6]} 24... Nf2+ {[%clk 0:01:11.1]} 25.
Kg1 {[%clk 0:01:49.5]} 25... Nd3 {[%clk 0:01:12]} 26. Rxe8 {[%clk 0:01:38.5]}
26... Rxe8 {[%clk 0:01:12.9]} 27. Kf1 {[%clk 0:01:39]} 27... f6 {[%clk
0:01:09.4]} 28. Nb3 {[%clk 0:01:33.3]} 28... Kf7 {[%clk 0:01:06.9]} 29. Rd1
{[%clk 0:01:33.3]} 29... Nb4 {[%clk 0:01:05.8]} 30. a3 {[%clk 0:01:30]} 30...
Nc2 {[%clk 0:01:05.7]} 31. Rd2 {[%clk 0:01:30.1]} 31... Nxa3 {[%clk 0:00:51.8]}
32. Ra2 {[%clk 0:01:30.3]} 32... Nxc4 {[%clk 0:00:52]} 33. Rxa7 {[%clk
0:01:30.4]} 33... Re7 {[%clk 0:00:52.6]} 34. d5 {[%clk 0:01:29.3]} 34... Ne3+
{[%clk 0:00:48.1]} 35. Kf2 {[%clk 0:01:29.4]} 35... Nxd5 {[%clk 0:00:49]} 36.
Nd4 {[%clk 0:01:29.3]} 36... c5 {[%clk 0:00:48]} 0-1

[Event "Early-Titled-Tuesday-Blitz-September-12-2023"]
[Site "Chess.com"]
[Date "2023.09.12"]
[Round "1"]
[White "Triumphmate"]
[Black "wonderfultime"]
[Result "0-1"]
[WhiteElo "2525"]
[BlackElo "2997"]
[TimeControl "180+1"]
[EndTime "8:05:25 PDT"]
[Termination "wonderfultime won on time"]

1. e4 {[%clk 0:03:00.9]} 1... c5 {[%clk 0:02:59.2]} 2. Nf3 {[%clk 0:03:00.8]}
2... Nf6 {[%clk 0:02:59.8]} 3. Nc3 {[%clk 0:02:59.2]} 3... d5 {[%clk 0:02:59.6]}
4. exd5 {[%clk 0:02:58.9]} 4... Nxd5 {[%clk 0:03:00.5]} 5. d4 {[%clk 0:02:56.9]}
5... Nxc3 {[%clk 0:02:57]} 6. bxc3 {[%clk 0:02:55.6]} 6... e6 {[%clk 0:02:52.6]}
7. Bd3 {[%clk 0:02:52.9]} 7... Be7 {[%clk 0:02:49.3]} 8. O-O {[%clk 0:02:53]}
8... O-O {[%clk 0:02:48.8]} 9. Rb1 {[%clk 0:02:47.1]} 9... Nc6 {[%clk
0:02:47.6]} 10. Be3 {[%clk 0:02:47]} 10... cxd4 {[%clk 0:02:47]} 11. cxd4 {[%clk
0:02:47.9]} 11... b6 {[%clk 0:02:25.1]} 12. c4 {[%clk 0:02:29]} 12... Bb7 {[%clk
0:02:24.8]} 13. Rb5 {[%clk 0:02:09.3]} 13... Bf6 {[%clk 0:02:06.7]} 14. Ne5
{[%clk 0:01:11.2]} 14... Rc8 {[%clk 0:01:57.1]} 15. c5 {[%clk 0:00:26.8]} 15...
g6 {[%clk 0:01:35.9]} 16. cxb6 {[%clk 0:00:19.5]} 16... axb6 {[%clk 0:01:36.8]}
17. Qb3 {[%clk 0:00:09.7]} 17... Nxd4 {[%clk 0:01:34.4]} 18. Bxd4 {[%clk
0:00:09]} 18... Qxd4 {[%clk 0:01:35.3]} 19. Nf3 {[%clk 0:00:03.2]} 19... Bxf3
{[%clk 0:01:35]} 20. gxf3 {[%clk 0:00:04.1]} 20... Rc3 {[%clk 0:01:35.4]} 0-1

[Event "Early-Titled-Tuesday-Blitz-September-12-2023"]
[Site "Chess.com"]
[Date "2023.09.12"]
[Round "1"]
[White "Zkid"]
[Black "SHIVACalypso"]
[Result "1-0"]
[WhiteElo "2883"]
[BlackElo "2489"]
[TimeControl "180+1"]
[EndTime "8:05:29 PDT"]
[Termination "Zkid won by resignation"]

1. e4 {[%clk 0:02:59.8]} 1... e6 {[%clk 0:02:58.5]} 2. d4 {[%clk 0:02:59]} 2...
d5 {[%clk 0:02:58.5]} 3. Nd2 {[%clk 0:02:59.6]} 3... f5 {[%clk 0:02:57.5]} 4.
exd5 {[%clk 0:02:59.2]} 4... exd5 {[%clk 0:02:56.9]} 5. Ndf3 {[%clk 0:02:55.9]}
5... Nf6 {[%clk 0:02:53.7]} 6. Bf4 {[%clk 0:02:53]} 6... Bd6 {[%clk 0:02:53.3]}
7. Bxd6 {[%clk 0:02:52.6]} 7... Qxd6 {[%clk 0:02:54.2]} 8. Bd3 {[%clk
0:02:44.3]} 8... O-O {[%clk 0:02:53.8]} 9. Ne2 {[%clk 0:02:44.8]} 9... Ne4
{[%clk 0:02:51.2]} 10. O-O {[%clk 0:02:39.8]} 10... Nd7 {[%clk 0:02:47.6]} 11.
c3 {[%clk 0:02:36.6]} 11... Ndf6 {[%clk 0:02:46.4]} 12. Ne5 {[%clk 0:02:34.2]}
12... Be6 {[%clk 0:02:39.3]} 13. f3 {[%clk 0:02:32.5]} 13... Ng5 {[%clk
0:02:39]} 14. Nf4 {[%clk 0:02:23.4]} 14... Nf7 {[%clk 0:02:33.6]} 15. Re1 {[%clk
0:02:21.4]} 15... Rae8 {[%clk 0:02:32.1]} 16. Qc2 {[%clk 0:02:15.1]} 16... Nxe5
{[%clk 0:02:29.9]} 17. Rxe5 {[%clk 0:02:13.9]} 17... Bd7 {[%clk 0:02:26]} 18.
Rae1 {[%clk 0:02:11.1]} 18... Rxe5 {[%clk 0:02:23.1]} 19. Rxe5 {[%clk 0:02:12]}
19... g6 {[%clk 0:02:23.4]} 20. Qe2 {[%clk 0:01:52.8]} 20... Re8 {[%clk
0:02:22.6]} 21. Nxd5 {[%clk 0:01:47.4]} 21... Rxe5 {[%clk 0:02:13.3]} 22. Nxf6+
{[%clk 0:01:47.2]} 22... Qxf6 {[%clk 0:02:12.9]} 23. Qxe5 {[%clk 0:01:46.8]}
23... Qxe5 {[%clk 0:02:12.7]} 24. dxe5 {[%clk 0:01:47.7]} 24... Be6 {[%clk
0:02:12.8]} 25. a3 {[%clk 0:01:42.3]} 25... f4 {[%clk 0:02:12]} 26. h4 {[%clk
0:01:03.2]} 26... Bd5 {[%clk 0:02:09.7]} 27. Kf2 {[%clk 0:00:59.6]} 27... Kf7
{[%clk 0:02:09.4]} 28. g3 {[%clk 0:00:59.9]} 28... fxg3+ {[%clk 0:02:02.1]} 29.
Kxg3 {[%clk 0:01:00.8]} 29... Ke6 {[%clk 0:02:02]} 30. f4 {[%clk 0:00:59.6]}
30... c5 {[%clk 0:01:54.8]} 31. Kg4 {[%clk 0:00:57]} 31... c4 {[%clk 0:01:50.3]}
32. Bf1 {[%clk 0:00:53.5]} 32... b5 {[%clk 0:01:50]} 33. Kg5 {[%clk 0:00:53.5]}
33... Be4 {[%clk 0:01:50.2]} 34. Bh3+ {[%clk 0:00:50.3]} 34... Kd5 {[%clk
0:01:50]} 35. e6 {[%clk 0:00:45.5]} 35... Kd6 {[%clk 0:01:48.8]} 36. Kf6 {[%clk
0:00:45.6]} 36... Bc6 {[%clk 0:01:48.3]} 37. e7 {[%clk 0:00:44.5]} 37... Be8
{[%clk 0:01:48.3]} 38. Be6 {[%clk 0:00:43.4]} 38... a5 {[%clk 0:01:40.2]} 39.
Bf7 {[%clk 0:00:41.1]} 39... Kd7 {[%clk 0:01:38.2]} 40. Bg8 {[%clk 0:00:40.5]}
1-0

[Event "Early-Titled-Tuesday-Blitz-September-12-2023"]
[Site "Chess.com"]
[Date "2023.09.12"]
[Round "1"]
[White "AndresDelgado77"]
[Black "hellokostya"]
[Result "0-1"]
[WhiteElo "2294"]
[BlackElo "2610"]
[TimeControl "180+1"]
[EndTime "8:05:40 PDT"]
[Termination "hellokostya won on time"]

1. e4 {[%clk 0:02:59.6]} 1... c5 {[%clk 0:03:00.3]} 2. Nf3 {[%clk 0:02:58.4]}
2... Nc6 {[%clk 0:03:00.4]} 3. b4 {[%clk 0:02:54.2]} 3... Nxb4 {[%clk
0:02:54.5]} 4. c3 {[%clk 0:02:54]} 4... Nc6 {[%clk 0:02:54.6]} 5. d4 {[%clk
0:02:54.4]} 5... d5 {[%clk 0:02:53.4]} 6. exd5 {[%clk 0:02:53.9]} 6... Qxd5
{[%clk 0:02:52.3]} 7. Be2 {[%clk 0:02:54.2]} 7... Bf5 {[%clk 0:02:49.8]} 8. O-O
{[%clk 0:02:34.3]} 8... e6 {[%clk 0:02:45.9]} 9. c4 {[%clk 0:02:33.1]} 9... Qd7
{[%clk 0:02:43.6]} 10. d5 {[%clk 0:02:30.8]} 10... Nb4 {[%clk 0:02:18.5]} 11.
Ne5 {[%clk 0:02:24.3]} 11... Bc2 {[%clk 0:02:04.5]} 12. Qd2 {[%clk 0:02:07.6]}
12... Qc7 {[%clk 0:02:00.7]} 13. Bb2 {[%clk 0:01:38.6]} 13... Bd6 {[%clk
0:01:57.8]} 14. Qg5 {[%clk 0:01:28.3]} 14... f6 {[%clk 0:01:52.4]} 15. Bh5+
{[%clk 0:00:56.2]} 15... g6 {[%clk 0:01:46.3]} 16. Nxg6 {[%clk 0:00:22]} 16...
fxg5 {[%clk 0:01:27.6]} 17. Nf4+ {[%clk 0:00:10.7]} 17... Bg6 {[%clk 0:01:23.8]}
18. Nxe6 {[%clk 0:00:05.9]} 18... Qf7 {[%clk 0:01:16.5]} 19. Bxg6 {[%clk
0:00:03.7]} 19... hxg6 {[%clk 0:01:16]} 20. Bxh8 {[%clk 0:00:03.6]} 20... Qh7
{[%clk 0:01:15.7]} 0-1

[Event "Early-Titled-Tuesday-Blitz-September-12-2023"]
[Site "Chess.com"]
[Date "2023.09.12"]
[Round "1"]
[White "AradNazari"]
[Black "Jackalhead_Anubis"]
[Result "1-0"]
[WhiteElo "2743"]
[BlackElo "2416"]
[TimeControl "180+1"]
[EndTime "8:05:42 PDT"]
[Termination "AradNazari won by checkmate"]

1. e4 {[%clk 0:03:00.9]} 1... e5 {[%clk 0:02:55]} 2. f4 {[%clk 0:02:59.7]} 2...
d5 {[%clk 0:02:51.2]} 3. exd5 {[%clk 0:02:59.6]} 3... exf4 {[%clk 0:02:48.5]} 4.
Nf3 {[%clk 0:02:59.5]} 4... Nf6 {[%clk 0:02:46.8]} 5. Bb5+ {[%clk 0:02:59.6]}
5... c6 {[%clk 0:02:40.5]} 6. dxc6 {[%clk 0:03:00.5]} 6... Nxc6 {[%clk
0:02:40.8]} 7. Nc3 {[%clk 0:03:00.5]} 7... Bb4 {[%clk 0:02:33.6]} 8. a3 {[%clk
0:02:38.7]} 8... Bxc3 {[%clk 0:02:31.8]} 9. Qe2+ {[%clk 0:02:11.2]} 9... Kd7
{[%clk 0:01:49.6]} 10. dxc3 {[%clk 0:02:08.4]} 10... Re8 {[%clk 0:01:47.6]} 11.
Ne5+ {[%clk 0:02:07.8]} 11... Kc7 {[%clk 0:01:42.7]} 12. Bxf4 {[%clk 0:02:08.3]}
12... Nd5 {[%clk 0:01:24.4]} 13. Bg3 {[%clk 0:01:38.1]} 13... Kb6 {[%clk
0:01:00.5]} 14. Nc4+ {[%clk 0:01:17.7]} 14... Kxb5 {[%clk 0:00:44.4]} 15. a4+
{[%clk 0:00:46.2]} 15... Ka6 {[%clk 0:00:29.5]} 16. Ne3+ {[%clk 0:00:46.4]}
16... Kb6 {[%clk 0:00:23]} 17. Qb5# {[%clk 0:00:46.8]} 1-0

[Event "Early-Titled-Tuesday-Blitz-September-12-2023"]
[Site "Chess.com"]
[Date "2023.09.12"]
[Round "1"]
[White "Maksimus1998"]
[Black "dadice10"]
[Result "1-0"]
[WhiteElo "2564"]
[BlackElo "2210"]
[TimeControl "180+1"]
[EndTime "8:05:42 PDT"]
[Termination "Maksimus1998 won by resignation"]

1. d4 {[%clk 0:03:00.9]} 1... d5 {[%clk 0:02:59.5]} 2. Nf3 {[%clk 0:03:00.6]}
2... Nf6 {[%clk 0:02:57.8]} 3. e3 {[%clk 0:03:00.7]} 3... g6 {[%clk 0:02:55.7]}
4. c4 {[%clk 0:03:00.2]} 4... Bg7 {[%clk 0:02:55]} 5. Nc3 {[%clk 0:02:59.9]}
5... O-O {[%clk 0:02:52.9]} 6. cxd5 {[%clk 0:02:59.9]} 6... Nxd5 {[%clk
0:02:52]} 7. Bc4 {[%clk 0:03:00.8]} 7... Nb6 {[%clk 0:02:51.9]} 8. Bb3 {[%clk
0:03:00.5]} 8... c5 {[%clk 0:02:52.4]} 9. O-O {[%clk 0:03:00.6]} 9... cxd4
{[%clk 0:02:49.4]} 10. exd4 {[%clk 0:03:00.5]} 10... Bg4 {[%clk 0:02:46.5]} 11.
d5 {[%clk 0:02:58.4]} 11... N8d7 {[%clk 0:02:40.1]} 12. h3 {[%clk 0:02:57]}
12... Bxf3 {[%clk 0:02:37.8]} 13. Qxf3 {[%clk 0:02:57.9]} 13... Nc5 {[%clk
0:02:34.7]} 14. Rd1 {[%clk 0:02:57.4]} 14... Nxb3 {[%clk 0:02:32.6]} 15. axb3
{[%clk 0:02:56.9]} 15... Nc8 {[%clk 0:02:32]} 16. Be3 {[%clk 0:02:51.3]} 16...
b6 {[%clk 0:02:30.1]} 17. Bd4 {[%clk 0:02:51.2]} 17... Nd6 {[%clk 0:02:29.2]}
18. Bxg7 {[%clk 0:02:50.7]} 18... Kxg7 {[%clk 0:02:29.7]} 19. Rd4 {[%clk
0:02:50.7]} 19... Qd7 {[%clk 0:02:26.9]} 20. Rad1 {[%clk 0:02:49.5]} 20... Rac8
{[%clk 0:02:22.8]} 21. Qe2 {[%clk 0:02:43.2]} 21... Rfd8 {[%clk 0:02:17.9]} 22.
Qe5+ {[%clk 0:02:40.1]} 22... Kg8 {[%clk 0:02:17.2]} 23. Ne4 {[%clk 0:02:33.9]}
23... Nxe4 {[%clk 0:02:15.9]} 24. Rxe4 {[%clk 0:02:34.8]} 24... Rc5 {[%clk
0:02:10.5]} 25. Qxe7 {[%clk 0:02:12.6]} 25... Qxe7 {[%clk 0:02:11.4]} 26. Rxe7
{[%clk 0:02:13.1]} 26... Rcxd5 {[%clk 0:02:10]} 27. Rxd5 {[%clk 0:02:08.3]}
27... Rxd5 {[%clk 0:02:10.9]} 28. Rxa7 {[%clk 0:02:08.8]} 28... Rb5 {[%clk
0:02:08.6]} 29. Ra3 {[%clk 0:02:07.7]} 29... Kf8 {[%clk 0:02:08.3]} 30. Kf1
{[%clk 0:02:07.8]} 30... Ke7 {[%clk 0:02:08.4]} 31. Ke2 {[%clk 0:02:08.2]} 31...
Ke6 {[%clk 0:02:07.5]} 32. Kd3 {[%clk 0:02:07.6]} 32... Kd5 {[%clk 0:01:56.8]}
33. Kc3 {[%clk 0:02:06.5]} 33... Ke6 {[%clk 0:01:46.7]} 34. Ra4 {[%clk
0:02:04.7]} 34... Kd6 {[%clk 0:01:38.8]} 35. Rb4 {[%clk 0:02:02.9]} 35... Kc6
{[%clk 0:01:34.1]} 36. Rxb5 {[%clk 0:02:02]} 36... Kxb5 {[%clk 0:01:35]} 37. b4
{[%clk 0:02:02.4]} 37... f5 {[%clk 0:01:26.4]} 38. g3 {[%clk 0:01:48.1]} 38...
Kc6 {[%clk 0:01:23.6]} 39. Kc4 {[%clk 0:01:47.4]} 39... b5+ {[%clk 0:01:21.6]}
40. Kd4 {[%clk 0:01:47.3]} 40... Kd6 {[%clk 0:01:22]} 41. f3 {[%clk 0:01:41]}
41... h6 {[%clk 0:01:21.3]} 42. g4 {[%clk 0:01:38.1]} 42... f4 {[%clk
0:01:15.1]} 43. h4 {[%clk 0:01:36]} 43... g5 {[%clk 0:01:14.8]} 44. hxg5 {[%clk
0:01:21]} 44... hxg5 {[%clk 0:01:15.7]} 45. Ke4 {[%clk 0:01:21.3]} 45... Ke6
{[%clk 0:01:15.5]} 46. b3 {[%clk 0:01:21.5]} 46... Kf6 {[%clk 0:01:05.8]} 47.
Kd5 {[%clk 0:01:20.9]} 47... Ke7 {[%clk 0:01:04]} 48. Ke5 {[%clk 0:01:20.2]} 1-0

[Event "Early-Titled-Tuesday-Blitz-September-12-2023"]
[Site "Chess.com"]
[Date "2023.09.12"]
[Round "1"]
[White "Artem_Sadovsky"]
[Black "JiiHart"]
[Result "1-0"]
[WhiteElo "2553"]
[BlackElo "2122"]
[TimeControl "180+1"]
[EndTime "8:05:45 PDT"]
[Termination "Artem_Sadovsky won on time"]

1. Nf3 {[%clk 0:02:53.1]} 1... Nf6 {[%clk 0:02:59.1]} 2. e3 {[%clk 0:02:52.6]}
2... e6 {[%clk 0:02:56.5]} 3. c4 {[%clk 0:02:52.9]} 3... c5 {[%clk 0:02:56]} 4.
b3 {[%clk 0:02:53.2]} 4... b6 {[%clk 0:02:55]} 5. Bb2 {[%clk 0:02:53.6]} 5...
Bb7 {[%clk 0:02:54.6]} 6. d4 {[%clk 0:02:53.7]} 6... d5 {[%clk 0:02:52.9]} 7.
cxd5 {[%clk 0:02:51.2]} 7... exd5 {[%clk 0:02:49.8]} 8. Nc3 {[%clk 0:02:49.9]}
8... Be7 {[%clk 0:02:40.4]} 9. Be2 {[%clk 0:02:48.7]} 9... O-O {[%clk
0:02:39.9]} 10. O-O {[%clk 0:02:46]} 10... Nc6 {[%clk 0:02:27.8]} 11. dxc5
{[%clk 0:02:46.9]} 11... bxc5 {[%clk 0:02:26.3]} 12. Rc1 {[%clk 0:02:47.4]}
12... d4 {[%clk 0:01:49.3]} 13. exd4 {[%clk 0:02:40.6]} 13... Nxd4 {[%clk
0:01:42.5]} 14. Nxd4 {[%clk 0:02:38.6]} 14... cxd4 {[%clk 0:01:39.9]} 15. Na4
{[%clk 0:02:26]} 15... Re8 {[%clk 0:00:25.9]} 16. Qxd4 {[%clk 0:02:18.9]} 16...
Qxd4 {[%clk 0:00:24.8]} 17. Bxd4 {[%clk 0:02:19.8]} 17... Ba3 {[%clk 0:00:25]}
18. Rce1 {[%clk 0:02:09.7]} 18... Bc6 {[%clk 0:00:22.4]} 19. Bc4 {[%clk
0:02:01.1]} 19... Bxa4 {[%clk 0:00:15.3]} 20. bxa4 {[%clk 0:02:00.6]} 20... Ne4
{[%clk 0:00:12.7]} 21. Bd5 {[%clk 0:01:57.8]} 21... Nd2 {[%clk 0:00:11.1]} 22.
Bxa8 {[%clk 0:01:56.6]} 22... Rxa8 {[%clk 0:00:10.8]} 23. Re3 {[%clk 0:01:40.9]}
23... Nxf1 {[%clk 0:00:10]} 24. Rxa3 {[%clk 0:01:41.5]} 24... Nd2 {[%clk
0:00:09.3]} 25. Rg3 {[%clk 0:01:41.7]} 25... g6 {[%clk 0:00:07.9]} 26. Rd3
{[%clk 0:01:36.9]} 26... Ne4 {[%clk 0:00:07.3]} 27. Be3 {[%clk 0:01:34]} 27...
Kg7 {[%clk 0:00:04.4]} 28. f3 {[%clk 0:01:32.3]} 1-0